[Event "Late-Titled-Tuesday-Blitz-April-02-2024"]
[Site "Chess.com"]
[Date "2024.04.02"]
[Round "4"]
[White "Yaacovn"]
[Black "mightysmasher"]
[Result "1-0"]
[WhiteElo "2846"]
[BlackElo "2585"]
[TimeControl "180+1"]
[EndTime "14:36:09 PDT"]
[Termination "Yaacovn won by checkmate"]

1. d4 {[%clk 0:00:17.9]} 1... d5 {[%clk 0:02:58.7]} 2. Nf3 {[%clk 0:00:17.6]}
2... Nf6 {[%clk 0:02:58.4]} 3. Bf4 {[%clk 0:00:15]} 3... e6 {[%clk 0:02:58.6]}
4. e3 {[%clk 0:00:15.2]} 4... Bd6 {[%clk 0:02:58.6]} 5. Bg3 {[%clk 0:00:14.7]}
5... O-O {[%clk 0:02:58.6]} 6. c4 {[%clk 0:00:14.4]} 6... Ne4 {[%clk 0:02:54.9]}
7. Nc3 {[%clk 0:00:14.3]} 7... Nxc3 {[%clk 0:02:53]} 8. bxc3 {[%clk 0:00:15.2]}
8... h6 {[%clk 0:02:51.4]} 9. Qc2 {[%clk 0:00:15.5]} 9... c6 {[%clk 0:02:50.9]}
10. Rb1 {[%clk 0:00:15.3]} 10... b6 {[%clk 0:02:50.5]} 11. cxd5 {[%clk
0:00:15.1]} 11... exd5 {[%clk 0:02:50.5]} 12. c4 {[%clk 0:00:16]} 12... dxc4
{[%clk 0:02:45.7]} 13. Bxc4 {[%clk 0:00:16.9]} 13... Bg4 {[%clk 0:02:44.3]} 14.
Ne5 {[%clk 0:00:16.2]} 14... Bxe5 {[%clk 0:02:43.7]} 15. Bxe5 {[%clk 0:00:16.1]}
15... Nd7 {[%clk 0:02:43.7]} 16. Bd6 {[%clk 0:00:15.1]} 16... Re8 {[%clk
0:02:41.5]} 17. O-O {[%clk 0:00:14.5]} 17... Qf6 {[%clk 0:02:37.9]} 18. Bg3
{[%clk 0:00:14]} 18... Rad8 {[%clk 0:02:36.3]} 19. h3 {[%clk 0:00:12]} 19... Bf5
{[%clk 0:02:35.8]} 20. Bd3 {[%clk 0:00:10.6]} 20... Bxd3 {[%clk 0:02:35.5]} 21.
Qxd3 {[%clk 0:00:11.5]} 21... Nc5 {[%clk 0:02:35.9]} 22. Qc2 {[%clk 0:00:10.9]}
22... Ne4 {[%clk 0:02:35.9]} 23. Be5 {[%clk 0:00:10.5]} 23... Qg6 {[%clk
0:02:31.7]} 24. f3 {[%clk 0:00:09.7]} 24... Nd6 {[%clk 0:02:27.3]} 25. Qxg6
{[%clk 0:00:03.4]} 25... fxg6 {[%clk 0:02:28.2]} 26. Bxd6 {[%clk 0:00:01.8]}
26... Rxd6 {[%clk 0:02:28]} 27. Kf2 {[%clk 0:00:02.7]} 27... Rde6 {[%clk
0:02:27.3]} 28. Rfe1 {[%clk 0:00:02.1]} 28... Rd6 {[%clk 0:02:27.3]} 29. Rbc1
{[%clk 0:00:02.5]} 29... Red8 {[%clk 0:02:26.2]} 30. Re2 {[%clk 0:00:03]} 30...
Kf7 {[%clk 0:02:25.9]} 31. Rec2 {[%clk 0:00:03.5]} 31... Rc8 {[%clk 0:02:26.1]}
32. g4 {[%clk 0:00:04]} 32... Ke6 {[%clk 0:02:25.6]} 33. Ke2 {[%clk 0:00:04.5]}
33... g5 {[%clk 0:02:25.1]} 34. a4 {[%clk 0:00:04.8]} 34... Kf6 {[%clk
0:02:23.8]} 35. Rc4 {[%clk 0:00:05.3]} 35... g6 {[%clk 0:02:23]} 36. e4 {[%clk
0:00:05.8]} 36... Kf7 {[%clk 0:02:21.9]} 37. Ke3 {[%clk 0:00:06.3]} 37... h5
{[%clk 0:02:21.3]} 38. e5 {[%clk 0:00:06.6]} 38... Rd5 {[%clk 0:02:19.3]} 39.
Rxc6 {[%clk 0:00:06]} 39... Rxc6 {[%clk 0:02:18.8]} 40. Rxc6 {[%clk 0:00:06.9]}
40... Ra5 {[%clk 0:02:19.2]} 41. Rc4 {[%clk 0:00:06.8]} 41... Ke6 {[%clk
0:02:18.4]} 42. Ke4 {[%clk 0:00:07.3]} 42... Kd7 {[%clk 0:02:13.7]} 43. d5
{[%clk 0:00:07.3]} 43... Kd8 {[%clk 0:02:13.8]} 44. e6 {[%clk 0:00:07.3]} 44...
b5 {[%clk 0:02:11]} 45. axb5 {[%clk 0:00:07.1]} 45... Rxb5 {[%clk 0:02:11.2]}
46. Ke5 {[%clk 0:00:07.6]} 46... a5 {[%clk 0:02:07.2]} 47. Rc6 {[%clk
0:00:06.6]} 47... Rb8 {[%clk 0:02:04.7]} 48. Ra6 {[%clk 0:00:06.4]} 48... Rb3
{[%clk 0:02:02.8]} 49. Ra7 {[%clk 0:00:04.9]} 49... Ke8 {[%clk 0:02:02]} 50.
Ra8+ {[%clk 0:00:04.6]} 50... Ke7 {[%clk 0:02:00.8]} 51. d6# {[%clk 0:00:05]}
1-0

[Event "Late-Titled-Tuesday-Blitz-April-02-2024"]
[Site "Chess.com"]
[Date "2024.04.02"]
[Round "4"]
[White "JACK_BAU3R"]
[Black "remyrushbrooke"]
[Result "0-1"]
[WhiteElo "1876"]
[BlackElo "2238"]
[TimeControl "180+1"]
[EndTime "14:36:10 PDT"]
[Termination "remyrushbrooke won on time"]

1. d4 {[%clk 0:02:58.8]} 1... g6 {[%clk 0:02:59.6]} 2. Nc3 {[%clk 0:02:53.7]}
2... d5 {[%clk 0:02:57.4]} 3. Bf4 {[%clk 0:02:53.4]} 3... Bg7 {[%clk 0:02:57.4]}
4. e4 {[%clk 0:02:51]} 4... dxe4 {[%clk 0:02:52.7]} 5. Nxe4 {[%clk 0:02:14.8]}
5... Qxd4 {[%clk 0:02:51.2]} 6. Qxd4 {[%clk 0:02:12.9]} 6... Bxd4 {[%clk
0:02:52.1]} 7. Bxc7 {[%clk 0:01:47.7]} 7... Bf5 {[%clk 0:02:48.2]} 8. O-O-O
{[%clk 0:01:35.4]} 8... Nc6 {[%clk 0:02:37.7]} 9. Nf3 {[%clk 0:01:17.7]} 9...
Bg7 {[%clk 0:02:29.2]} 10. Ng3 {[%clk 0:01:14]} 10... Rc8 {[%clk 0:02:28.9]} 11.
Nxf5 {[%clk 0:01:12.4]} 11... gxf5 {[%clk 0:02:29.8]} 12. Bg3 {[%clk 0:00:53.7]}
12... e6 {[%clk 0:02:29.6]} 13. Bb5 {[%clk 0:00:50]} 13... Ne7 {[%clk
0:02:29.4]} 14. Be5 {[%clk 0:00:42.3]} 14... O-O {[%clk 0:02:21.4]} 15. Bxg7
{[%clk 0:00:40.4]} 15... Kxg7 {[%clk 0:02:22.3]} 16. c3 {[%clk 0:00:36.8]} 16...
a6 {[%clk 0:02:20.9]} 17. Ba4 {[%clk 0:00:36.1]} 17... b5 {[%clk 0:02:20.6]} 18.
Bc2 {[%clk 0:00:23.7]} 18... Nd5 {[%clk 0:02:14.3]} 19. Nd4 {[%clk 0:00:17.6]}
19... Nxd4 {[%clk 0:02:13.2]} 20. Rxd4 {[%clk 0:00:18.5]} 20... Kf6 {[%clk
0:02:11.6]} 21. f4 {[%clk 0:00:17.2]} 21... Rc5 {[%clk 0:01:53.2]} 22. Kb1
{[%clk 0:00:10.7]} 22... Rfc8 {[%clk 0:01:52.9]} 23. Re1 {[%clk 0:00:09.1]}
23... b4 {[%clk 0:01:47.6]} 24. Bb3 {[%clk 0:00:02.4]} 24... bxc3 {[%clk
0:01:45.1]} 25. Bxd5 {[%clk 0:00:02.2]} 25... cxb2 {[%clk 0:01:11.7]} 0-1

[Event "Late-Titled-Tuesday-Blitz-April-02-2024"]
[Site "Chess.com"]
[Date "2024.04.02"]
[Round "4"]
[White "ChempionBg"]
[Black "ricaurtelopezj1955"]
[Result "0-1"]
[WhiteElo "2271"]
[BlackElo "2166"]
[TimeControl "180+1"]
[EndTime "14:36:11 PDT"]
[Termination "ricaurtelopezj1955 won on time"]

1. d4 {[%clk 0:02:58.9]} 1... c5 {[%clk 0:02:56.7]} 2. d5 {[%clk 0:02:56.9]}
2... e6 {[%clk 0:02:55.9]} 3. Nc3 {[%clk 0:02:56.9]} 3... Nf6 {[%clk 0:02:52.4]}
4. e4 {[%clk 0:02:56.3]} 4... exd5 {[%clk 0:02:48.4]} 5. exd5 {[%clk 0:02:55.6]}
5... d6 {[%clk 0:02:48]} 6. Nf3 {[%clk 0:02:54.2]} 6... a6 {[%clk 0:02:45.8]} 7.
a4 {[%clk 0:02:52.6]} 7... g6 {[%clk 0:02:45.5]} 8. Be2 {[%clk 0:02:50]} 8...
Bg7 {[%clk 0:02:45.7]} 9. O-O {[%clk 0:02:50.4]} 9... O-O {[%clk 0:02:45.3]} 10.
Nd2 {[%clk 0:02:50.3]} 10... Re8 {[%clk 0:02:41.8]} 11. Nc4 {[%clk 0:02:48.9]}
11... Ne4 {[%clk 0:02:30.3]} 12. Nxe4 {[%clk 0:02:37.5]} 12... Rxe4 {[%clk
0:02:28.4]} 13. Bd3 {[%clk 0:02:30.4]} 13... Re8 {[%clk 0:02:08.1]} 14. Bf4
{[%clk 0:02:24.7]} 14... Be5 {[%clk 0:01:59.5]} 15. Nxe5 {[%clk 0:00:56.4]}
15... dxe5 {[%clk 0:01:55]} 16. Bh6 {[%clk 0:00:56]} 16... Nd7 {[%clk 0:01:43]}
17. f4 {[%clk 0:00:48.4]} 17... e4 {[%clk 0:01:41.1]} 18. Bc4 {[%clk 0:00:29.3]}
18... Qf6 {[%clk 0:01:39.3]} 19. c3 {[%clk 0:00:16.9]} 19... Rb8 {[%clk
0:01:28.5]} 20. a5 {[%clk 0:00:13.9]} 20... b5 {[%clk 0:01:27.4]} 21. axb6
{[%clk 0:00:10.8]} 21... Rxb6 {[%clk 0:01:26.4]} 22. Qc1 {[%clk 0:00:06.7]}
22... e3 {[%clk 0:01:16.3]} 23. f5 {[%clk 0:00:02.4]} 23... gxf5 {[%clk
0:01:11.9]} 0-1

[Event "Late-Titled-Tuesday-Blitz-April-02-2024"]
[Site "Chess.com"]
[Date "2024.04.02"]
[Round "4"]
[White "AllStarShark"]
[Black "Zkid"]
[Result "0-1"]
[WhiteElo "2526"]
[BlackElo "2838"]
[TimeControl "180+1"]
[EndTime "14:36:12 PDT"]
[Termination "Zkid won by resignation"]

1. c4 {[%clk 0:03:00.9]} 1... e6 {[%clk 0:02:57]} 2. g3 {[%clk 0:02:55.5]} 2...
d5 {[%clk 0:02:57]} 3. Bg2 {[%clk 0:02:55.3]} 3... Nf6 {[%clk 0:02:57.6]} 4. Nf3
{[%clk 0:02:54.3]} 4... dxc4 {[%clk 0:02:57.6]} 5. Qa4+ {[%clk 0:02:53.4]} 5...
Nbd7 {[%clk 0:02:55.9]} 6. Qxc4 {[%clk 0:02:52.1]} 6... a6 {[%clk 0:02:56.1]} 7.
O-O {[%clk 0:02:51.3]} 7... b5 {[%clk 0:02:56]} 8. Qc2 {[%clk 0:02:50.2]} 8...
Bb7 {[%clk 0:02:56.4]} 9. d3 {[%clk 0:02:30.7]} 9... c5 {[%clk 0:02:53.8]} 10.
a4 {[%clk 0:02:30.4]} 10... Be7 {[%clk 0:02:52.1]} 11. axb5 {[%clk 0:02:28.9]}
11... axb5 {[%clk 0:02:53]} 12. Rxa8 {[%clk 0:02:28.1]} 12... Qxa8 {[%clk
0:02:53.9]} 13. Na3 {[%clk 0:02:26.4]} 13... Bc6 {[%clk 0:02:49.7]} 14. Ne1
{[%clk 0:02:14.3]} 14... Nd5 {[%clk 0:02:38.8]} 15. Bd2 {[%clk 0:01:48.5]} 15...
O-O {[%clk 0:02:35]} 16. e4 {[%clk 0:01:46.4]} 16... Nb4 {[%clk 0:02:15.7]} 17.
Bxb4 {[%clk 0:01:41.4]} 17... cxb4 {[%clk 0:02:16.6]} 18. Nb1 {[%clk 0:01:41.6]}
18... Rc8 {[%clk 0:02:08]} 19. Qe2 {[%clk 0:01:35.2]} 19... Qa2 {[%clk
0:02:02.5]} 20. Nf3 {[%clk 0:01:31.5]} 20... Nc5 {[%clk 0:01:59.2]} 21. Nd4
{[%clk 0:01:21.7]} 21... Be8 {[%clk 0:01:53.6]} 22. f4 {[%clk 0:01:12.3]} 22...
Rd8 {[%clk 0:01:48.9]} 23. Qe3 {[%clk 0:01:06]} 23... Qxb2 {[%clk 0:01:47.1]}
24. Ne2 {[%clk 0:00:52.2]} 24... Rxd3 {[%clk 0:01:45.4]} 25. Qf2 {[%clk
0:00:52.4]} 25... Nb3 {[%clk 0:01:43.1]} 26. Nc1 {[%clk 0:00:42.4]} 26... Bc5
{[%clk 0:01:28.4]} 27. Nxd3 {[%clk 0:00:40.3]} 27... Bxf2+ {[%clk 0:01:27.8]}
28. Nxf2 {[%clk 0:00:40.3]} 28... Nd4 {[%clk 0:01:19.6]} 29. Rd1 {[%clk
0:00:38.2]} 29... f6 {[%clk 0:01:13.9]} 30. e5 {[%clk 0:00:32.9]} 30... Bg6
{[%clk 0:01:10.6]} 31. Nd2 {[%clk 0:00:30.4]} 31... Ne2+ {[%clk 0:01:08.2]} 32.
Kf1 {[%clk 0:00:28.9]} 32... Nc3 {[%clk 0:01:08.8]} 33. Nc4 {[%clk 0:00:21]}
33... Qe2+ {[%clk 0:01:06.4]} 34. Kg1 {[%clk 0:00:21.1]} 34... Nxd1 {[%clk
0:01:06.7]} 0-1

[Event "Late-Titled-Tuesday-Blitz-April-02-2024"]
[Site "Chess.com"]
[Date "2024.04.02"]
[Round "4"]
[White "Caracal3000"]
[Black "Romkachess"]
[Result "0-1"]
[WhiteElo "2543"]
[BlackElo "2676"]
[TimeControl "180+1"]
[EndTime "14:36:16 PDT"]
[Termination "Romkachess won by resignation"]

1. e4 {[%clk 0:02:57.3]} 1... c5 {[%clk 0:02:59.1]} 2. Nf3 {[%clk 0:02:56.9]}
2... d6 {[%clk 0:02:59.1]} 3. d4 {[%clk 0:02:57.5]} 3... cxd4 {[%clk 0:02:59.5]}
4. Nxd4 {[%clk 0:02:58.4]} 4... Nf6 {[%clk 0:02:59.8]} 5. Nc3 {[%clk 0:02:59.2]}
5... a6 {[%clk 0:03:00.3]} 6. f4 {[%clk 0:02:59.9]} 6... e5 {[%clk 0:03:00]} 7.
Nb3 {[%clk 0:03:00.6]} 7... Nc6 {[%clk 0:03:00.3]} 8. Be2 {[%clk 0:03:00.4]}
8... Be7 {[%clk 0:02:59.7]} 9. O-O {[%clk 0:03:00.4]} 9... O-O {[%clk
0:03:00.2]} 10. Kh1 {[%clk 0:03:01.1]} 10... Be6 {[%clk 0:03:00.1]} 11. f5
{[%clk 0:02:49.1]} 11... Bxb3 {[%clk 0:02:58.1]} 12. axb3 {[%clk 0:02:50]} 12...
Nb4 {[%clk 0:02:58.3]} 13. Bg5 {[%clk 0:02:42.9]} 13... Rc8 {[%clk 0:02:49.3]}
14. Bc4 {[%clk 0:02:36.5]} 14... b5 {[%clk 0:02:45.4]} 15. Bxf6 {[%clk
0:02:33.3]} 15... Bxf6 {[%clk 0:02:21.9]} 16. Bd5 {[%clk 0:02:33.4]} 16... Qb6
{[%clk 0:02:20.2]} 17. Qd2 {[%clk 0:02:25]} 17... Qd4 {[%clk 0:02:16.5]} 18.
Rfd1 {[%clk 0:02:14.8]} 18... Qxd2 {[%clk 0:02:08.3]} 19. Rxd2 {[%clk
0:02:14.2]} 19... Bg5 {[%clk 0:02:09.2]} 20. Re2 {[%clk 0:02:07.2]} 20... Rc7
{[%clk 0:02:08.3]} 21. g3 {[%clk 0:02:02.1]} 21... h5 {[%clk 0:02:04.4]} 22. h4
{[%clk 0:01:34.4]} 22... Bh6 {[%clk 0:02:04.3]} 23. Rd1 {[%clk 0:01:26.1]} 23...
Rfc8 {[%clk 0:02:00.9]} 24. Kg2 {[%clk 0:01:16.5]} 24... Kf8 {[%clk 0:01:33.2]}
25. Kf3 {[%clk 0:01:15]} 25... Rxc3+ {[%clk 0:01:28.5]} 26. bxc3 {[%clk
0:01:11.6]} 26... Rxc3+ {[%clk 0:01:29.4]} 27. Kg2 {[%clk 0:01:04.2]} 27... Nxc2
{[%clk 0:01:28.4]} 28. Bb7 {[%clk 0:00:52.1]} 28... Ne3+ {[%clk 0:01:11.7]} 29.
Rxe3 {[%clk 0:00:49]} 29... Bxe3 {[%clk 0:01:12.6]} 30. Rxd6 {[%clk 0:00:39.6]}
30... Rxb3 {[%clk 0:00:55.9]} 31. Bxa6 {[%clk 0:00:37.1]} 31... Rb2+ {[%clk
0:00:54.6]} 32. Kf3 {[%clk 0:00:36.2]} 32... Bc5 {[%clk 0:00:48.1]} 0-1

[Event "Late-Titled-Tuesday-Blitz-April-02-2024"]
[Site "Chess.com"]
[Date "2024.04.02"]
[Round "4"]
[White "andrzej"]
[Black "Zavgorodniy_Sergiy"]
[Result "0-1"]
[WhiteElo "2487"]
[BlackElo "2637"]
[TimeControl "180+1"]
[EndTime "14:36:19 PDT"]
[Termination "Zavgorodniy_Sergiy won on time"]

1. e4 {[%clk 0:03:00.9]} 1... c6 {[%clk 0:02:59.9]} 2. d4 {[%clk 0:03:00.7]}
2... d5 {[%clk 0:03:00.8]} 3. exd5 {[%clk 0:03:00.7]} 3... cxd5 {[%clk
0:03:01.2]} 4. Bd3 {[%clk 0:03:01.3]} 4... Nc6 {[%clk 0:03:00.8]} 5. c3 {[%clk
0:03:01.7]} 5... Nf6 {[%clk 0:03:01.5]} 6. Bf4 {[%clk 0:03:01.4]} 6... Bg4
{[%clk 0:03:01.5]} 7. Qb3 {[%clk 0:03:02]} 7... Qd7 {[%clk 0:03:01.9]} 8. Nd2
{[%clk 0:03:01.3]} 8... e6 {[%clk 0:03:02.4]} 9. Ngf3 {[%clk 0:03:01.6]} 9...
Bd6 {[%clk 0:03:02.6]} 10. Bxd6 {[%clk 0:03:01.4]} 10... Qxd6 {[%clk 0:03:03.5]}
11. O-O {[%clk 0:03:01.7]} 11... O-O {[%clk 0:03:03.4]} 12. Rae1 {[%clk
0:03:01.9]} 12... Rab8 {[%clk 0:03:02.7]} 13. a4 {[%clk 0:02:42.3]} 13... Bh5
{[%clk 0:03:01]} 14. Re3 {[%clk 0:02:36.5]} 14... Bg6 {[%clk 0:02:58.6]} 15. Qc2
{[%clk 0:02:27.5]} 15... a6 {[%clk 0:02:55.4]} 16. Rfe1 {[%clk 0:02:22]} 16...
Rfc8 {[%clk 0:02:53.9]} 17. Bxg6 {[%clk 0:02:21.6]} 17... hxg6 {[%clk
0:02:54.8]} 18. Ng5 {[%clk 0:02:17.3]} 18... Nxd4 {[%clk 0:02:50.5]} 19. Qd3
{[%clk 0:02:10.9]} 19... Nf5 {[%clk 0:02:49.1]} 20. Rh3 {[%clk 0:02:11.4]} 20...
Nh6 {[%clk 0:02:38.2]} 21. Ndf3 {[%clk 0:02:05.9]} 21... Re8 {[%clk 0:02:36]}
22. Ne5 {[%clk 0:01:39.9]} 22... Re7 {[%clk 0:02:36.1]} 23. Rxh6 {[%clk
0:01:33.1]} 23... gxh6 {[%clk 0:02:35.5]} 24. Ngxf7 {[%clk 0:01:33.4]} 24...
Rxf7 {[%clk 0:02:25.3]} 25. Qxg6+ {[%clk 0:01:31.3]} 25... Rg7 {[%clk
0:02:24.9]} 26. Qxf6 {[%clk 0:01:28.5]} 26... Rf8 {[%clk 0:02:24.6]} 27. Qxh6
{[%clk 0:01:28.4]} 27... Rf5 {[%clk 0:02:04.1]} 28. Nd3 {[%clk 0:00:58.5]} 28...
Kf7 {[%clk 0:01:55.3]} 29. Nc5 {[%clk 0:00:41.7]} 29... Rf6 {[%clk 0:01:46.3]}
30. Qh5+ {[%clk 0:00:37]} 30... Ke7 {[%clk 0:01:35.7]} 31. b4 {[%clk 0:00:29.6]}
31... Qf4 {[%clk 0:01:31.5]} 32. f3 {[%clk 0:00:14.7]} 32... Qd2 {[%clk
0:01:28.1]} 33. Rxe6+ {[%clk 0:00:05.1]} 33... Rxe6 {[%clk 0:01:28]} 34. Qh4+
{[%clk 0:00:05.3]} 34... Rf6 {[%clk 0:01:23.5]} 0-1

[Event "Late-Titled-Tuesday-Blitz-April-02-2024"]
[Site "Chess.com"]
[Date "2024.04.02"]
[Round "4"]
[White "only_strong_moves"]
[Black "Jahonas"]
[Result "1-0"]
[WhiteElo "2742"]
[BlackElo "2502"]
[TimeControl "180+1"]
[EndTime "14:36:20 PDT"]
[Termination "only_strong_moves won by resignation"]

1. Nc3 {[%clk 0:03:00]} 1... d5 {[%clk 0:02:58.1]} 2. e4 {[%clk 0:02:59.1]} 2...
dxe4 {[%clk 0:02:57.2]} 3. Nxe4 {[%clk 0:02:56.9]} 3... Nf6 {[%clk 0:02:57.3]}
4. Nxf6+ {[%clk 0:02:57.2]} 4... exf6 {[%clk 0:02:57.4]} 5. d4 {[%clk
0:02:58.1]} 5... Bd6 {[%clk 0:02:57.4]} 6. Bd3 {[%clk 0:02:58.8]} 6... O-O
{[%clk 0:02:57.6]} 7. Ne2 {[%clk 0:02:59.5]} 7... c5 {[%clk 0:02:55.7]} 8. Be3
{[%clk 0:02:56.8]} 8... cxd4 {[%clk 0:02:54.5]} 9. Nxd4 {[%clk 0:02:56.7]} 9...
Nc6 {[%clk 0:02:54.5]} 10. Nxc6 {[%clk 0:02:54.5]} 10... bxc6 {[%clk 0:02:54]}
11. O-O {[%clk 0:02:55.3]} 11... Qc7 {[%clk 0:02:43.5]} 12. h3 {[%clk
0:02:54.1]} 12... Bb7 {[%clk 0:02:37.2]} 13. Qh5 {[%clk 0:02:51.7]} 13... g6
{[%clk 0:02:36.9]} 14. Qh4 {[%clk 0:02:52.1]} 14... Be5 {[%clk 0:02:32.6]} 15.
c3 {[%clk 0:02:52.1]} 15... Rfe8 {[%clk 0:02:30]} 16. Rae1 {[%clk 0:02:42.4]}
16... Rad8 {[%clk 0:02:17.4]} 17. Bc4 {[%clk 0:02:41.6]} 17... f5 {[%clk
0:02:13.7]} 18. Bxa7 {[%clk 0:02:32.8]} 18... c5 {[%clk 0:02:09.2]} 19. Bb5
{[%clk 0:01:56.5]} 19... Bh2+ {[%clk 0:01:45.5]} 20. Kh1 {[%clk 0:01:56.6]}
20... Rxe1 {[%clk 0:01:44.8]} 21. Rxe1 {[%clk 0:01:57.5]} 21... Bd6 {[%clk
0:01:20.7]} 22. Qxd8+ {[%clk 0:01:55.5]} 22... Qxd8 {[%clk 0:01:19.2]} 23. Re8+
{[%clk 0:01:55.9]} 23... Qxe8 {[%clk 0:01:19.4]} 24. Bxe8 {[%clk 0:01:56.8]}
24... Kf8 {[%clk 0:01:17.3]} 25. Bb5 {[%clk 0:01:56]} 25... Ke7 {[%clk
0:01:16.7]} 26. a3 {[%clk 0:01:55.9]} 26... Kd8 {[%clk 0:01:11.5]} 27. Bb6+
{[%clk 0:01:54.5]} 27... Ke7 {[%clk 0:01:08]} 28. Kg1 {[%clk 0:01:54.8]} 28...
f4 {[%clk 0:01:06.2]} 29. f3 {[%clk 0:01:54.1]} 29... Ke6 {[%clk 0:01:05.7]} 30.
Bc4+ {[%clk 0:01:53.4]} 30... Bd5 {[%clk 0:01:04.5]} 31. Bxd5+ {[%clk
0:01:36.5]} 31... Kxd5 {[%clk 0:01:03.8]} 32. b4 {[%clk 0:01:35.1]} 32... cxb4
{[%clk 0:00:49.2]} 33. cxb4 {[%clk 0:01:36]} 33... Kc4 {[%clk 0:00:47.9]} 34.
Kf2 {[%clk 0:01:30.8]} 34... Be5 {[%clk 0:00:45.3]} 35. Bc5 {[%clk 0:01:28]}
35... Kb5 {[%clk 0:00:41.3]} 36. Ke2 {[%clk 0:01:19.3]} 36... Bb2 {[%clk
0:00:41.1]} 37. Kd3 {[%clk 0:01:19]} 37... f5 {[%clk 0:00:40.4]} 38. a4+ {[%clk
0:01:09.7]} 38... Kxa4 {[%clk 0:00:39.3]} 39. Kc4 {[%clk 0:01:10.4]} 1-0

[Event "Late-Titled-Tuesday-Blitz-April-02-2024"]
[Site "Chess.com"]
[Date "2024.04.02"]
[Round "4"]
[White "flawian2008"]
[Black "Indefatigable11"]
[Result "1/2-1/2"]
[WhiteElo "2527"]
[BlackElo "2133"]
[TimeControl "180+1"]
[EndTime "14:36:20 PDT"]
[Termination "Game drawn by repetition"]

1. d4 {[%clk 0:03:00.9]} 1... Nf6 {[%clk 0:02:59.8]} 2. c4 {[%clk 0:03:01.3]}
2... e6 {[%clk 0:03:00.3]} 3. Nf3 {[%clk 0:03:01.7]} 3... d5 {[%clk 0:02:59.8]}
4. g3 {[%clk 0:03:02]} 4... Be7 {[%clk 0:02:59.6]} 5. Bg2 {[%clk 0:03:02.3]}
5... O-O {[%clk 0:02:59.9]} 6. O-O {[%clk 0:03:02.9]} 6... dxc4 {[%clk
0:03:00.2]} 7. Ne5 {[%clk 0:03:03.3]} 7... c5 {[%clk 0:02:53]} 8. dxc5 {[%clk
0:02:59]} 8... Bxc5 {[%clk 0:02:52.9]} 9. Qc2 {[%clk 0:02:57.6]} 9... Qc7 {[%clk
0:02:49.8]} 10. Nxc4 {[%clk 0:02:55.3]} 10... Bd7 {[%clk 0:02:35.2]} 11. Bf4
{[%clk 0:02:52.4]} 11... Qc8 {[%clk 0:02:35.3]} 12. Nc3 {[%clk 0:02:38.2]} 12...
Bc6 {[%clk 0:02:33.6]} 13. e4 {[%clk 0:02:38.8]} 13... Nbd7 {[%clk 0:02:30.9]}
14. Rad1 {[%clk 0:02:34.5]} 14... Rd8 {[%clk 0:02:14.6]} 15. Nd6 {[%clk
0:02:33.1]} 15... Bxd6 {[%clk 0:02:14.4]} 16. Bxd6 {[%clk 0:02:34]} 16... b6
{[%clk 0:02:07.1]} 17. Qe2 {[%clk 0:02:20.6]} 17... Qb7 {[%clk 0:02:02.9]} 18.
f4 {[%clk 0:02:07.2]} 18... Nc5 {[%clk 0:02:01.7]} 19. Bxc5 {[%clk 0:02:00.6]}
19... bxc5 {[%clk 0:02:02.2]} 20. e5 {[%clk 0:01:32.2]} 20... Bxg2 {[%clk
0:01:58.9]} 21. Qxg2 {[%clk 0:01:33.1]} 21... Nd5 {[%clk 0:01:50.8]} 22. Ne4
{[%clk 0:01:29.5]} 22... Qb4 {[%clk 0:01:44.9]} 23. Rfe1 {[%clk 0:01:14.4]}
23... Rab8 {[%clk 0:01:41.2]} 24. Re2 {[%clk 0:01:06.8]} 24... c4 {[%clk
0:01:38.2]} 25. Qf2 {[%clk 0:00:54.4]} 25... c3 {[%clk 0:01:13.9]} 26. bxc3
{[%clk 0:00:50.6]} 26... Nxc3 {[%clk 0:01:13.5]} 27. Rxd8+ {[%clk 0:00:50.1]}
27... Rxd8 {[%clk 0:01:13.6]} 28. Nxc3 {[%clk 0:00:50.8]} 28... Qxc3 {[%clk
0:01:12.6]} 29. Rc2 {[%clk 0:00:48.6]} 29... Qd3 {[%clk 0:01:04.6]} 30. Rc7
{[%clk 0:00:40.2]} 30... Qb1+ {[%clk 0:01:03.6]} 31. Kg2 {[%clk 0:00:37.8]}
31... Qe4+ {[%clk 0:01:00.5]} 32. Kh3 {[%clk 0:00:35.5]} 32... Qf5+ {[%clk
0:00:59]} 33. Kg2 {[%clk 0:00:35.7]} 33... Qe4+ {[%clk 0:00:58.3]} 34. Kh3
{[%clk 0:00:34]} 34... Qf5+ {[%clk 0:00:57.7]} 35. Kg2 {[%clk 0:00:21.7]} 35...
Qe4+ {[%clk 0:00:57.3]} 1/2-1/2